bitfinex-derivatives/quotes_SOLF0:USTF0_20250409
["timestamp","ask_amount","ask_price","bid_price","bid_amount"]
[1744231090354,0.05589304,118.86,118.81,35.16]
[1744231090556,9.51119536,118.85,118.82,16.56672544]
[1744231090755,0.05589304,118.86,118.82,16.56672544]
[1744231091055,9.51140938,118.85,118.82,16.56672544]
[1744231091354,0.05589304,118.86,118.82,16.56672544]
[1744231091548,9.50885436,118.85,118.82,16.56672544]
[1744231091856,0.05589304,118.86,118.82,16.56672544]
[1744231092154,9.50881461,118.85,118.82,16.56672544]
[1744231092356,0.05589304,118.86,118.82,16.56672544]
[1744231092558,9.50779215,118.85,118.82,16.56672544]
[1744231092756,0.05589304,118.86,118.82,16.56672544]
[1744231092956,9.50770338,118.85,118.82,16.56672544]
[1744231093257,0.05589304,118.86,118.82,16.56672544]
[1744231093455,9.50603262,118.85,118.82,16.56672544]
[1744231093658,8.47259304,118.86,118.82,16.56672544]
[1744231093856,9.50541036,118.85,118.82,16.56672544]
[1744231094059,8.47259304,118.86,118.82,16.56672544]
[1744231094250,9.50535051,118.85,118.82,16.56672544]
[1744231094552,8.47259304,118.86,118.82,16.56672544]
[1744231094751,9.50465957,118.85,118.82,16.56672544]
[1744231094951,0.05589304,118.86,118.82,16.56672544]
[1744231095153,9.50691764,118.85,118.82,16.56672544]
[1744231095453,0.05589304,118.86,118.83,10.60350389]
[1744231095658,9.50448539,118.85,118.83,10.60350389]
[1744231095958,0.05589304,118.86,118.83,10.60350389]
[1744231096158,9.50431326,118.85,118.83,10.60350389]
[1744231096449,0.05589304,118.86,118.83,10.60350389]
[1744231096658,9.5055301,118.85,118.83,10.60350389]
[1744231096856,8.47229304,118.86,118.83,10.60350389]
[1744231097159,5.92479477,118.85,118.83,10.60350389]
[1744231097348,8.47229304,118.86,118.83,10.60350389]
[1744231097548,5.92321306,118.85,118.83,10.60350389]
[1744231097748,8.47229304,118.86,118.83,10.60350389]
[1744231097948,5.92292503,118.85,118.83,10.60350389]
[1744231098158,8.47229304,118.86,118.83,10.60350389]
[1744231098358,5.9229578,118.85,118.83,10.60350389]
[1744231098658,8.47229304,118.86,118.83,10.60350389]
[1744231098847,9.50586416,118.85,118.83,10.60350389]
[1744231099044,8.47229304,118.86,118.83,10.60350389]
[1744231099357,9.50523825,118.85,118.83,10.60350389]
[1744231099567,8.47229304,118.86,118.83,10.60350389]
[1744231099761,9.50522068,118.85,118.83,10.60350389]
[1744231099960,8.47229304,118.86,118.83,10.60350389]
[1744231100159,9.50527733,118.85,118.83,10.60350389]
[1744231100458,8.47229304,118.86,118.83,10.60350389]
[1744231100661,9.50550051,118.85,118.83,10.60350389]
[1744231100853,8.47229304,118.86,118.83,10.60350389]
[1744231101053,9.50461922,118.85,118.83,10.60350389]
[1744231101262,0.05589304,118.86,118.83,10.60350389]
[1744231101461,9.50523624,118.85,118.83,10.60350389]
[1744231101647,8.47259304,118.86,118.83,10.60350389]
[1744231101946,9.50313769,118.85,118.83,10.60350389]
[1744231102150,8.47259304,118.86,118.83,10.60350389]
[1744231102450,9.50261931,118.85,118.83,10.60350389]
[1744231102649,8.47259304,118.86,118.83,10.60350389]
[1744231102860,9.50233214,118.85,118.83,10.60350389]
[1744231103059,0.05589304,118.86,118.83,10.60350389]
[1744231103259,9.50320616,118.85,118.83,10.60350389]
[1744231103459,0.05589304,118.86,118.83,10.60350389]
[1744231103755,9.50512688,118.85,118.83,10.60350389]
[1744231103961,0.05589304,118.86,118.83,10.60350389]
[1744231104157,9.5051256,118.85,118.83,10.60350389]
[1744231104360,0.05589304,118.86,118.83,10.60350389]
[1744231104963,5.92373881,118.85,118.83,10.60350389]
[1744231105147,0.05589304,118.86,118.83,10.60350389]
[1744231105355,5.92400647,118.85,118.82,10.60350389]
[1744231105549,0.05589304,118.86,118.82,10.60350389]
[1744231105751,20.1084206,118.85,118.78,47.96530389]
[1744231105950,10.60350389,118.83,118.78,45.76350389]
[1744231106167,20.1084206,118.82,118.78,35.16]
[1744231106465,9.50491671,118.81,118.77,10.60350389]
[1744231106664,8.4204,118.81,118.77,10.60350389]
[1744231106850,0.06103362,118.8,118.77,10.60350389]
[1744231118968,0.06103362,118.8,118.76,2.2253]
[1744231119268,0.06103362,118.8,118.76,12.82880389]
[1744231120964,8.48173362,118.8,118.76,10.60350389]
[1744231121170,8.48173362,118.8,118.75,36.62489308]
[1744231121369,8.48173362,118.8,118.76,10.60350389]
[1744231121765,0.06103362,118.8,118.76,10.60350389]
[1744231122868,0.06103362,118.8,118.79,10.60350389]
[1744231123065,5.91107875,118.83,118.79,10.60350389]
[1744231123371,9.48629027,118.85,118.82,10.60350389]
[1744231123562,2.1046,118.86,118.82,10.60350389]
[1744231123862,9.4905175,118.85,118.81,10.60350389]
[1744231124064,3.57614713,118.85,118.81,72.60350389]
[1744231124268,0.05385333,118.84,118.82,0.06103362]
[1744231126766,0.05385333,118.84,118.82,10.66453751]
[1744231126971,0.05385333,118.84,118.83,10.60350389]
[1744231129075,0.05385333,118.84,118.82,10.66453751]
[1744231131275,0.05385333,118.84,118.83,10.60350389]
[1744231131669,2.2296,118.9,118.83,10.60350389]
[1744231131870,5.9173452,118.89,118.87,10.60350389]
[1744231132072,3.5786251,118.9,118.88,10.60350389]
[1744231132379,11.67116465,118.91,118.88,10.60350389]
[1744231132779,11.72678989,118.91,118.88,10.6652199]
[1744231135284,0.05562524,118.91,118.88,10.6652199]
[1744231140293,8.46862524,118.91,118.88,10.6652199]
[1744231140594,10.65912913,118.91,118.88,0.06171601]
[1744231141399,19.07232913,118.91,118.88,0.06171601]
[1744231142392,0.05562524,118.91,118.88,0.06171601]
[1744231142586,0.05562524,118.91,118.88,10.6652199]
[1744231142786,0.05562524,118.91,118.89,10.60350389]
[1744231142987,0.05562524,118.91,118.9,10.60350389]
[1744231143596,0.05562524,118.91,118.89,10.60350389]
[1744231143795,0.05562524,118.91,118.9,10.60350389]
[1744231145202,0.05562524,118.91,118.88,10.6652199]
[1744231146696,0.05562524,118.91,118.88,0.06171601]
[1744231148195,45.68350389,118.9,118.88,0.06171601]
[1744231148500,10.60350389,118.89,118.84,45.68350389]
[1744231148797,10.60350389,118.87,118.82,12.06750339]
[1744231148991,10.60350389,118.87,118.82,10.60350389]
[1744231149301,10.60350389,118.88,118.83,10.60350389]
[1744231149699,0.06192785,118.87,118.84,0.05317094]
[1744231150204,0.06192785,118.87,118.85,10.60350389]
[1744231150994,0.06192785,118.87,118.86,10.60350389]
[1744231152006,0.06192785,118.87,118.84,45.73667483]
[1744231154703,8.47762785,118.87,118.84,45.73667483]
[1744231155000,0.06192785,118.87,118.84,45.73667483]
[1744231157606,0.06192785,118.87,118.86,10.60350389]
[1744231158399,0.06192785,118.87,118.84,45.73667483]
[1744231160208,0.06192785,118.87,118.84,35.13317094]
[1744231160408,0.06192785,118.87,118.84,45.73667483]
[1744231160615,0.06192785,118.87,118.86,10.60350389]
[1744231167812,92.37329062,118.96,118.88,10.60350389]
[1744231168022,92.37329062,118.96,118.93,10.60350389]
[1744231168315,92.37329062,118.96,118.87,610.166]
[1744231168316,46.52858721,118.94,118.91,45.68350389]
[1744231168516,5.77033289,118.93,118.91,45.68350389]
[1744231168713,46.52858721,118.94,118.91,45.68350389]
[1744231168908,5.82938388,118.93,118.91,0.05707219]
[1744231169112,0.05919397,118.93,118.91,0.05707219]
[1744231169311,5.77068432,118.92,118.91,0.05707219]
[1744231170316,5.77068432,118.92,118.91,10.66057608]
[1744231170525,0.05919397,118.93,118.91,10.66057608]
[1744231170827,0.05919397,118.93,118.92,10.60350389]
[1744231171725,0.05919397,118.93,118.91,107.74057608]
[1744231173118,0.05919397,118.93,118.92,10.60350389]
[1744231178525,0.05919397,118.93,118.91,45.74057608]
[1744231179523,0.05919397,118.93,118.91,35.13707219]
[1744231180727,5.81796521,118.93,118.91,0.05707219]
[1744231180930,16.51976521,118.93,118.91,0.05707219]
[1744231181125,2.34919397,118.93,118.91,0.05707219]
[1744231181526,8.1044256,118.93,118.91,0.05707219]
[1744231181827,2.34919397,118.93,118.91,0.05707219]
[1744231182335,0.05919397,118.93,118.92,10.60350389]
[1744231182523,0.05919397,118.93,118.91,10.66057608]
[1744231182728,0.05919397,118.93,118.92,10.60350389]
[1744231183028,0.05919397,118.93,118.91,10.66057608]
[1744231183818,0.05919397,118.93,118.92,10.60350389]
[1744231185122,0.05919397,118.93,118.91,0.05707219]
[1744231185327,0.05919397,118.93,118.91,10.66057608]
[1744231185919,0.05919397,118.93,118.92,10.60350389]
[1744231193240,43.4276,118.99,118.92,10.60350389]
[1744231193537,14.94210389,119.0,118.96,10.60350389]
[1744231193738,5.75748031,118.99,118.95,10.60350389]
[1744231193944,5.75748031,118.99,118.96,10.60350389]
[1744231194238,5.75748031,118.99,118.95,10.60350389]
[1744231194439,0.05696619,118.99,118.96,0.0608437]
[1744231195142,14.22161328,118.99,118.96,0.0608437]
[1744231195337,10.66047008,118.99,118.96,0.0608437]
[1744231195540,10.60350389,118.97,118.94,35.02]
[1744231195742,10.60350389,118.98,118.94,45.62350389]
[1744231196341,10.66047008,118.99,118.95,10.60350389]
[1744231196644,5.75778475,118.98,118.96,0.05544244]
[1744231197542,10.60350389,118.97,118.94,35.02]
[1744231198741,10.60350389,118.97,118.94,35.07800662]
[1744231198943,19.01180389,118.98,118.94,35.07800662]
[1744231199538,10.60350389,118.98,118.94,35.07800662]
[1744231199744,45.66047008,118.99,118.94,45.68151051]
[1744231200244,45.66047008,118.99,118.95,10.60350389]
[1744231200441,5.76206244,118.98,118.95,10.60350389]
[1744231201739,5.76206244,118.98,118.96,10.60350389]
[1744231201941,5.81380129,118.99,118.96,10.60350389]
[1744231202438,0.05696619,118.99,118.96,10.60350389]
[1744231202638,5.81570295,118.99,118.96,10.60350389]
[1744231203846,5.81570295,118.99,118.95,10.60350389]
[1744231204448,14.22320295,118.99,118.95,10.60350389]
[1744231204643,0.05696619,118.99,118.96,10.60350389]
[1744231204846,5.82273744,118.99,118.96,10.60350389]
[1744231205345,0.05696619,118.99,118.96,10.60350389]
[1744231205551,8.46446619,118.99,118.96,10.60350389]
[1744231206142,0.05696619,118.99,118.96,10.60350389]
[1744231206654,8.46426619,118.99,118.96,10.60350389]
[1744231206853,5.76639617,118.98,118.95,10.60350389]
[1744231207043,5.76639617,118.97,118.94,45.68151051]
[1744231207242,3.31353901,118.98,118.94,45.68151051]
[1744231207450,5.76531158,118.97,118.94,45.68151051]
[1744231207652,13.9170429,118.98,118.94,45.68151051]
[1744231207852,5.76737713,118.97,118.94,45.68151051]
[1744231208155,3.31447439,118.98,118.94,45.68151051]
[1744231208360,11.1137086,118.97,118.94,45.68151051]
[1744231208561,5.34642132,118.97,118.94,45.68151051]
[1744231208857,5.34642132,118.96,118.94,45.68151051]
[1744231209358,5.34642132,118.95,118.94,45.68151051]
[1744231210954,5.35482847,118.95,118.94,0.05800662]
[1744231211149,25.05137399,118.95,118.89,10.60350389]
[1744231211356,23.91560963,118.94,118.89,10.60350389]
[1744231211560,14.18577727,118.93,118.89,10.60350389]
[1744231211763,11.12910574,118.92,118.89,10.60350389]
[1744231211962,5.35482847,118.92,118.89,10.60350389]
[1744231212155,5.35482847,118.91,118.89,10.60350389]
[1744231212756,5.35482847,118.9,118.88,45.56350389]
[1744231213064,0.05483232,118.92,118.88,45.56350389]
[1744231213257,5.78444725,118.91,118.88,45.56350389]
[1744231213456,0.05483232,118.92,118.88,45.56350389]
[1744231213661,5.78347446,118.91,118.88,45.56350389]
[1744231213861,5.36175437,118.9,118.89,10.60350389]
[1744231214560,0.05483232,118.92,118.89,10.60350389]
[1744231214762,0.05483232,118.92,118.9,10.60350389]
[1744231214958,0.05483232,118.92,118.91,10.60350389]
[1744231215165,46.52858721,118.94,118.91,45.56350389]
[1744231215368,46.52858721,118.94,118.93,10.60350389]
[1744231215559,126.04660554,118.95,118.93,10.60350389]
[1744231215865,126.04660554,118.95,118.94,10.60350389]
[1744231216865,0.05340055,118.96,118.94,10.60350389]
[1744231217068,0.05340055,118.96,118.95,10.60350389]
[1744231217266,30.14141513,118.97,118.95,16.52536597]
[1744231217563,92.37329062,118.99,118.97,16.52536597]
[1744231218067,5.78570068,118.98,118.95,16.52536597]
[1744231218269,92.37329062,118.99,118.96,62.0]
[1744231218461,0.06072431,118.98,118.96,62.0]
[1744231218767,0.06072431,118.98,118.95,16.57963947]
[1744231218969,0.06072431,118.98,118.97,16.52536597]
[1744231219164,0.06072431,118.98,118.97,51.48536597]
[1744231219571,6.31334482,118.98,118.97,51.48536597]
[1744231219965,0.06072431,118.98,118.97,51.48536597]
[1744231221164,3.61439169,119.01,118.99,16.52536597]
[1744231221464,6.2506275,119.0,118.99,16.52536597]
[1744231221669,2.1662,119.03,118.99,16.52536597]
[1744231221868,5.98215519,119.02,118.99,78.52536597]
[1744231222172,5.98178953,119.01,118.99,62.06286717]
[1744231222365,0.05902459,119.02,118.99,78.58823314]
[1744231222566,5.98160343,119.01,118.99,78.58823314]
[1744231222768,0.05902459,119.02,118.99,78.58823314]
[1744231222969,5.9796203,119.01,118.99,78.58823314]
[1744231223170,0.05902459,119.02,118.99,78.58823314]
[1744231225578,0.05902459,119.02,118.99,0.06286717]
[1744231225780,5.97599453,119.01,118.99,0.06286717]
[1744231225976,4.3857,119.06,119.0,34.94]
[1744231226178,5.97345086,119.05,119.02,16.52536597]
[1744231226377,37.147,119.08,119.04,16.52536597]
[1744231226576,5.97034337,119.07,119.04,16.52536597]
[1744231226771,33.67331492,119.1,119.04,16.52536597]
[1744231226971,5.96970986,119.09,119.06,16.52536597]
[1744231227168,6.02623912,119.08,119.06,51.52539716]
[1744231227482,33.67331492,119.1,119.06,51.52539716]
[1744231227673,33.67331492,119.1,119.08,16.52536597]
[1744231228066,33.67331492,119.1,119.06,51.52539716]
[1744231228483,33.67331492,119.1,119.06,35.00003119]
[1744231228674,2.14910429,119.09,119.06,35.00003119]
[1744231228874,10.54930429,119.09,119.06,35.00003119]
[1744231229676,14.35030044,119.08,119.06,0.06003119]
[1744231229969,37.08910429,119.09,119.02,51.46536597]
[1744231230170,22.47530211,119.08,119.02,34.94]
[1744231230466,5.94993614,119.07,119.02,34.94]
[1744231230668,5.94993614,119.06,119.02,34.94]
[1744231230867,16.52536597,119.04,118.98,34.94]
[1744231231088,4.57187131,119.05,119.03,0.0536499]
[1744231231381,18.92561433,119.05,119.03,0.05578148]
[1744231231577,12.97488583,119.05,119.03,0.05578148]
[1744231232181,8.4037,119.04,119.03,0.05578148]
[1744231232587,15.02795655,119.04,119.03,0.05578148]
[1744231233376,20.92350911,119.04,119.03,0.05578148]
[1744231233569,12.51980911,119.04,119.03,0.05578148]
[1744231234080,20.92350911,119.04,119.03,0.05578148]
[1744231234783,12.51980911,119.04,119.03,0.05578148]
[1744231235283,20.92350911,119.04,119.03,0.05578148]
[1744231235482,12.51980911,119.04,119.03,0.05578148]
[1744231235984,20.92350911,119.04,119.03,0.05578148]
[1744231236286,12.51980911,119.04,118.98,34.94]
[1744231236583,20.92470911,119.03,118.98,34.94]
[1744231236775,12.51980911,119.02,118.98,51.46536597]
[1744231236976,5.89555256,119.02,118.98,51.46536597]
[1744231237178,5.89555256,119.01,118.98,34.94]
[1744231237480,5.95271165,119.01,118.99,0.05436892]
[1744231237880,0.05715909,119.01,118.99,0.05436892]
[1744231241188,5.56606094,119.0,118.99,0.05436892]
[1744231242287,12.65777777,119.0,118.99,0.05436892]
[1744231243091,17.09252824,119.0,118.99,0.05436892]
[1744231244088,12.65777777,119.0,118.99,0.05436892]
[1744231244890,12.65957422,119.0,118.99,0.05436892]
[1744231246290,5.56606094,119.0,118.99,16.57973489]
[1744231246792,0.05715909,119.01,118.99,16.57973489]
[1744231247394,0.05715909,119.01,118.99,0.05436892]
[1744231248095,11.5312924,119.0,118.99,0.05436892]
[1744231248488,17.51673276,119.0,118.99,0.05436892]
[1744231250800,17.51866115,119.0,118.99,0.05436892]
[1744231257304,17.51866115,119.0,118.99,10.63029034]
[1744231260703,0.05715909,119.01,118.99,10.63029034]
[1744231260900,0.05715909,119.01,119.0,10.57592142]
[1744231265412,68.47534124,119.03,119.0,10.57592142]
[1744231265616,68.47534124,119.03,119.02,10.57592142]
[1744231266002,142.85649296,119.04,119.02,10.57592142]
[1744231266202,142.85649296,119.04,119.01,34.88]
[1744231266402,142.85649296,119.04,118.98,34.82]
[1744231266611,142.91301204,119.04,119.01,10.63831268]
[1744231266818,142.91301204,119.04,119.03,10.57592142]
[1744231267012,0.05651908,119.04,119.03,10.57592142]
[1744231274918,6.56997034,119.04,119.03,10.57592142]
[1744231275924,0.05651908,119.04,119.03,10.57592142]
[1744231277124,6.93300949,119.04,119.03,10.57592142]
[1744231277926,0.05651908,119.04,119.03,10.57592142]
[1744231280331,25.24143098,119.04,118.91,34.82]
[1744231280517,10.57592142,118.98,118.93,10.57592142]
[1744231280721,10.57592142,118.96,118.91,45.39592142]
[1744231280921,10.57592142,118.94,118.91,34.82]
[1744231281328,6.21050432,118.93,118.91,34.82]
[1744231281629,19.05066551,118.94,118.91,34.88278604]
[1744231281829,6.2107491,118.93,118.91,34.88278604]
[1744231282032,5.23960126,118.93,118.91,34.88278604]
[1744231282832,10.57592142,118.93,118.91,34.88278604]
[1744231283031,6.7780981,118.92,118.91,34.88278604]
[1744231285144,0.06364409,118.94,118.91,34.88278604]
[1744231285634,6.76385898,118.93,118.91,34.88278604]
[1744231285842,0.06364409,118.94,118.91,34.88278604]
[1744231286327,0.06364409,118.94,118.91,96.88278604]
[1744231288135,7.32910476,118.93,118.91,96.88278604]
[1744231288338,0.06364409,118.94,118.91,96.88278604]
[1744231288532,12.03319491,118.93,118.91,96.88278604]
[1744231288739,0.06364409,118.94,118.91,96.88278604]
[1744231289238,12.03321091,118.93,118.91,96.88278604]
[1744231289833,0.06364409,118.94,118.91,96.88278604]
[1744231290643,12.02999512,118.93,118.91,96.88278604]
[1744231290846,4.70529544,118.93,118.91,96.88278604]
[1744231291345,0.06364409,118.94,118.91,96.88278604]
[1744231291934,0.06364409,118.94,118.91,113.43564704]
[1744231292335,5.25510372,118.93,118.91,113.43564704]
[1744231292835,0.06364409,118.94,118.91,113.43564704]
[1744231293735,0.06364409,118.94,118.91,96.88278604]
[1744231294735,0.06364409,118.94,118.91,113.43564704]
[1744231300648,0.06364409,118.94,118.93,16.552861]
[1744231301040,0.06364409,118.94,118.91,113.43564704]
[1744231303451,0.06364409,118.94,118.91,34.88278604]
[1744231304553,7.31108554,118.93,118.91,34.88278604]
[1744231304753,0.06364409,118.94,118.91,34.88278604]
[1744231305255,7.30940516,118.93,118.91,34.88278604]
[1744231305549,0.06364409,118.94,118.91,34.88278604]
[1744231305752,13.31044607,118.93,118.91,34.88278604]
[1744231306045,6.00080975,118.93,118.91,34.88278604]
[1744231306248,6.00080975,118.93,118.91,0.06278604]
[1744231306447,7.30886376,118.92,118.91,0.06278604]
[1744231306649,13.30967351,118.92,118.91,0.06278604]
[1744231306850,13.30967351,118.92,118.87,51.332861]
[1744231307046,8.4111,118.94,118.87,51.332861]
[1744231307247,11.65989204,118.93,118.87,51.332861]
[1744231307445,7.30610714,118.92,118.87,34.78]
[1744231307645,7.30610714,118.91,118.87,34.78]
[1744231307852,7.30610714,118.9,118.87,34.78]
[1744231308055,0.06185657,118.9,118.88,0.06129062]
[1744231308953,6.30713839,118.89,118.88,0.06129062]
[1744231309754,0.06185657,118.9,118.88,62.06129062]
[1744231309942,0.06185657,118.9,118.88,0.06129062]
[1744231313056,13.60283953,118.89,118.85,604.84]
[1744231313257,6.30364523,118.89,118.85,604.84]
[1744231313559,13.60223948,118.88,118.85,604.84]
[1744231313752,6.30364523,118.88,118.85,604.84]
[1744231314147,6.30364523,118.87,118.85,604.87938953]
[1744231314546,6.35704588,118.87,118.85,604.87938953]
[1744231314858,0.05340065,118.87,118.85,604.87938953]
[1744231315963,0.05340065,118.87,118.85,666.87938953]
[1744231316455,0.05340065,118.87,118.85,604.87938953]
[1744231319459,0.05340065,118.87,118.86,62.0]
[1744231320561,6.36806979,118.87,118.86,62.0]
[1744231321268,7.37157855,118.87,118.85,604.87938953]
[1744231321460,0.05340065,118.87,118.85,604.87938953]
[1744231321659,0.05340065,118.87,118.85,621.43225053]
[1744231322159,7.32426215,118.86,118.85,621.43225053]
[1744231322369,7.32426215,118.86,118.85,604.87938953]
[1744231322561,0.05340065,118.87,118.85,604.87938953]
[1744231322963,0.05340065,118.87,118.85,0.03938953]
[1744231323163,11.39173237,118.86,118.85,0.03938953]
[1744231323662,17.39344758,118.86,118.85,0.03938953]
[1744231325870,130.63075147,118.86,118.85,0.03938953]
[1744231326071,130.63075147,118.86,118.84,34.8]
[1744231326272,11.39173237,118.85,118.84,34.8]
[1744231326571,17.39344758,118.85,118.84,34.8]
[1744231327261,17.39344758,118.85,118.81,51.312861]
[1744231327464,17.39344758,118.84,118.81,51.312861]
[1744231327673,6.06475758,118.84,118.81,51.312861]
[1744231327975,6.06475758,118.84,118.82,62.0]
[1744231328269,6.00171521,118.83,118.82,62.0]
[1744231329577,0.06304237,118.84,118.82,62.0]
[1744231334370,6.90493593,118.83,118.81,34.76]
[1744231334676,5.86798714,118.83,118.81,34.76]
[1744231335175,5.86798714,118.82,118.81,34.76]
[1744231335377,5.86798714,118.82,118.81,45.36732702]
[1744231336271,0.06304237,118.84,118.81,45.36732702]
[1744231337079,5.86588071,118.83,118.81,45.36732702]
[1744231337281,5.86588071,118.83,118.82,10.60732702]
[1744231337467,6.90030579,118.86,118.82,10.60732702]
[1744231337676,46.34875258,118.87,118.85,10.60732702]
[1744231337982,35.25826056,118.89,118.86,45.36732702]
[1744231338181,285.99536665,118.91,118.88,10.60732702]
[1744231338380,175.1808954,118.9,118.89,45.36732702]
[1744231340481,175.1808954,118.9,118.89,107.36732702]
[1744231340688,0.06064445,118.91,118.89,107.36732702]
[1744231340984,0.06064445,118.91,118.9,10.60732702]
[1744231341186,6.65374463,118.91,118.89,107.36732702]
[1744231341379,6.59498182,118.9,118.89,96.76]
[1744231341569,0.06064445,118.91,118.89,96.76]
[1744231342788,0.06064445,118.91,118.89,34.76]
[1744231343186,6.59927932,118.9,118.89,34.76]
[1744231343392,6.59927932,118.9,118.88,0.05795769]
[1744231343588,0.06064445,118.91,118.88,0.05795769]
[1744231343791,6.59942281,118.9,118.88,0.05795769]
[1744231344089,0.06064445,118.91,118.88,0.05795769]
[1744231344286,10.73065857,118.9,118.88,0.05795769]
[1744231344478,0.06064445,118.91,118.88,0.05795769]
[1744231344679,10.73268338,118.9,118.88,0.05795769]
[1744231344874,0.06064445,118.91,118.88,0.05795769]
[1744231345179,10.73268338,118.9,118.88,0.05795769]
[1744231345381,0.06064445,118.91,118.88,0.05795769]
[1744231345579,10.73625435,118.9,118.88,0.05795769]
[1744231345780,0.06064445,118.91,118.88,62.05795769]
[1744231345980,10.73634811,118.9,118.88,0.05795769]
[1744231346174,6.60514896,118.89,118.88,0.05795769]
[1744231346379,10.73937549,118.89,118.88,0.05795769]
[1744231349892,16.19881818,118.89,118.88,0.05795769]
[1744231351393,10.73937549,118.89,118.88,0.05795769]
[1744231353396,10.74920445,118.89,118.88,0.05795769]
[1744231354892,10.74920445,118.89,118.88,16.61036378]
[1744231355083,6.60514896,118.89,118.88,16.61036378]
[1744231355894,0.06064445,118.91,118.88,16.61036378]
[1744231357795,6.22102606,118.9,118.88,0.05795769]
[1744231358092,0.06064445,118.91,118.88,0.05795769]
[1744231358294,6.22142801,118.9,118.88,0.05795769]
[1744231358487,0.06064445,118.91,118.88,0.05795769]
[1744231358678,6.22135294,118.9,118.88,0.05795769]
[1744231358877,0.06064445,118.91,118.88,0.05795769]
[1744231359082,6.22133092,118.9,118.88,0.05795769]
[1744231359287,0.06064445,118.91,118.88,0.05795769]
[1744231359489,6.22043844,118.9,118.88,0.05795769]
[1744231359683,6.22043844,118.89,118.88,0.05795769]
[1744231359877,0.06064445,118.91,118.88,0.05795769]
[1744231360082,6.21939002,118.9,118.88,0.05795769]
[1744231360388,0.06064445,118.91,118.88,0.05795769]
[1744231360588,6.21915422,118.9,118.88,0.05795769]
[1744231360794,0.06064445,118.91,118.88,0.05795769]
[1744231360996,6.21747394,118.9,118.88,0.05795769]
[1744231361194,6.2171292,118.89,118.88,0.05795769]
[1744231361399,0.06064445,118.91,118.88,0.05795769]
[1744231361589,6.21531727,118.9,118.88,0.05795769]
[1744231361889,0.06064445,118.91,118.88,0.05795769]
[1744231363197,6.21463418,118.9,118.88,0.05795769]
[1744231363393,0.06064445,118.91,118.88,0.05795769]
[1744231363596,6.2148578,118.9,118.88,0.05795769]
[1744231363792,0.06064445,118.91,118.88,0.05795769]
[1744231364501,6.21308769,118.9,118.88,0.05795769]
[1744231364697,0.06064445,118.91,118.88,0.05795769]
[1744231364901,6.21334147,118.9,118.88,0.05795769]
[1744231365094,0.06064445,118.91,118.88,0.05795769]
[1744231365489,6.21406636,118.9,118.88,0.05795769]
[1744231365697,0.06064445,118.91,118.88,0.05795769]
[1744231365904,6.21406499,118.9,118.88,0.05795769]
[1744231366094,0.06064445,118.91,118.88,0.05795769]
[1744231366294,6.21449684,118.9,118.88,0.05795769]
[1744231366495,0.06064445,118.91,118.88,0.05795769]
[1744231366707,6.21414386,118.9,118.88,10.65442744]
[1744231366899,0.06064445,118.91,118.88,10.65442744]
[1744231367604,0.06064445,118.91,118.9,10.59646975]
[1744231367992,6.27245528,118.91,118.9,10.59646975]
[1744231368904,6.27245528,118.91,118.89,10.59646975]
[1744231369101,0.06064445,118.91,118.88,0.05795769]
[1744231369295,6.21014257,118.9,118.88,0.05795769]
[1744231369496,0.06064445,118.91,118.88,0.05795769]
[1744231369697,6.209704,118.9,118.88,0.05795769]
[1744231369893,0.06064445,118.91,118.88,0.05795769]
[1744231370097,6.21095274,118.9,118.88,0.05795769]
[1744231370294,0.06064445,118.91,118.88,0.05795769]
[1744231370493,6.21159524,118.9,118.88,0.05795769]
[1744231370699,0.06064445,118.91,118.88,0.05795769]
[1744231370899,6.21110091,118.9,118.88,0.05795769]
[1744231371098,0.06064445,118.91,118.88,0.05795769]
[1744231371300,6.21305045,118.9,118.88,0.05795769]
[1744231371500,0.06064445,118.91,118.88,0.05795769]
[1744231371703,6.21322277,118.9,118.88,0.05795769]
[1744231372004,0.06064445,118.91,118.88,0.05795769]
[1744231372204,6.21243461,118.9,118.88,0.05795769]
[1744231372403,0.06064445,118.91,118.88,0.05795769]
[1744231372606,6.21411459,118.9,118.88,0.05795769]
[1744231372806,6.21302749,118.89,118.88,0.05795769]
[1744231373199,6.21302749,118.89,118.84,36.16366083]
[1744231373406,9.75460365,118.88,118.84,34.7]
[1744231373699,6.21302749,118.87,118.84,34.7]
[1744231373902,6.21302749,118.86,118.84,34.7]
[1744231374198,6.5088,118.9,118.84,34.7]
[1744231374394,0.06372872,118.86,118.84,34.7]
[1744231375409,34.97170349,118.91,118.85,16.55503928]
[1744231375709,6.21628114,118.9,118.86,62.0]
[1744231375908,6.21628114,118.89,118.87,34.7]
[1744231376105,34.97170349,118.91,118.87,51.25503928]
[1744231376509,128.23930061,118.91,118.87,51.25503928]
[1744231376708,0.05737013,118.9,118.88,0.05980714]
[1744231377810,0.05737013,118.9,118.89,16.55503928]
[1744231378506,128.23930061,118.91,118.89,16.55503928]
[1744231378698,34.97170349,118.95,118.9,34.7]
[1744231378895,3.54131574,118.94,118.91,16.55503928]
[1744231379109,34.97170349,118.95,118.91,16.55503928]
[1744231379308,3.54162115,118.94,118.92,62.0]
[1744231379608,34.97170349,118.95,118.92,62.0]